[Event "85th Tata Steel Masters 2023"]
[White "Giri,Anish"]
[Black "Carlsen,Magnus"]
[Site "Wijk aan Zee"]
[Round "4.1"]
[Annotator "TA"]
[Result "1-0"]
[Date "2023.01.17"]
[WhiteElo "2764"]
[BlackElo "2859"]
[PlyCount "69"]
[TimeControl "60"]

{[%evp 11,69,29,30,0,0,0,0,0,0,0,0,0,0,0,23,15,19,22,7,19,14,24,10,17,20,11,9,9,10,12,22,6,11,22,75,77,228,222,222,195,215,208,191,165,172,109,214,212,199,202,212,199,391,391,380,372,345,337,428,418]} 1. d4 {[%emt 0:0:2]} Nf6 {[%emt 0:1:1]} 2. c4 {[%emt 0:0:5]} e6 {[%emt 0:0:5]} 3. Nf3 {[%emt 0:0:4]} b6 {[%emt 0:0:9]} 4. g3 {[%emt 0:0:3]} Ba6 {[%emt 0:0:7]} 5. Qc2 {[%emt 0:7:11]} Bb7 {[%emt 0:0:30]} 6. Bg2 {[%emt 0:0:16]} c5 {[%emt 0:0:8]} 7. d5 {[%emt 0:0:34] E15: Queen's Indian: 4 g3 sidelines, 4 g3 Ba6 and 4 g3 Bb7 early deviations.} exd5 {[%emt 0:0:7]} 8. cxd5 {[%emt 0:0:2]} Nxd5 {[%emt 0:0:10]} 9. O-O {[%emt 0:0:34] The position is equal.} Be7 {[%emt 0:0:10] Against Ng5} 10. Rd1 {[%emt 0:0:53]} Nc6 {[%emt 0:0:40]} 11. Qf5 {[%emt 0:13:25]} (11. Rxd5 $2 Nb4 12. Qc3 Nxd5 $17 )Nf6 {[%emt 0:0:7][%cal Yd5f6,Yf6d7,Yd7e5,Ye5c4][%mdl 32]} 12. e4 {[%emt 0:0:12][%cal Ye2e4,Ye4e5][%mdl 32]} d6 {[%emt 0:7:54]} 13. e5 {[%emt 0:3:40]} Qd7 $1 {[%emt 0:0:21]} 14. Qxd7+ {[%emt 0:10:16][%mdl 64] [#] Remove Defender} (14. Qg5 h6 15. Qxg7 Rh7 16. exf6 Rxg7 17. fxg7 O-O-O $17 )Nxd7 {[%emt 0:0:3]} 15. exd6 {[%emt 0:0:4]} Bf6 {[%emt 0:0:13]} 16. Re1+ {[%emt 0:3:46]} Kf8 {[%emt 0:1:22]} 17. Nc3 $36 {[%emt 0:1:7][%mdl 2048] Black is under pressure.} Nb4 {[%emt 0:8:16] Hoping for ...Nc2.} 18. Ne5 {[%emt 0:3:25][%mdl 64] Discovered Attack} Nxe5 {[%emt 0:9:22]} 19. Bxb7 {[%emt 0:0:8]} Rd8 {[%emt 0:0:33] ...Nc2 would be deadly.} 20. Rd1 $1 {[%emt 0:1:35]} Nc4 {[%emt 0:16:9]} 21. d7 {[%emt 0:2:38] [#]} Nc2 $146 {[%emt 0:3:0]} (21... Ke7 {feels hotter.} 22. Bc8 Nc2 23. Rb1 Nd6 )({Predecessor:} 21... Ke7 22. Bc8 Nc2 23. Rb1 Nd6 24. Nd5+ Ke6 25. Nxf6 gxf6 26. Ba6 Rxd7 27. Bf4 Ke7 {½-½ Verhaeren,G (2310)-Jørgensen,P (2300) WS MN/144 email 2016} )22. Rb1 {[%emt 0:1:30]} Nd4 {[%emt 0:0:19] [#]} (22... Ne5 $11 )23. b4 $1 $16 {[%emt 0:14:1]} Rxd7 $2 {[%emt 0:4:14]} (23... h5 $16 )24. Bd5 $18 {[%emt 0:1:3] Threatens to win with bxc5.} Nd6 {[%emt 0:29:2]} 25. bxc5 {[%emt 0:1:1]} bxc5 {[%emt 0:0:2]} 26. Ba3 {[%emt 0:4:21]} Ke7 {[%emt 0:1:20]} 27. Bxc5 {[%emt 0:4:44]} Ne6 {[%emt 0:0:29]} 28. Bb4 {[%emt 0:9:31] This pair of bishops is nice. Black is weak on the light squares} ({White should play} 28. Ne4 $18 Nxc5 29. Nxc5 )a5 {[%emt 0:5:5]} 29. Bxa5 {[%emt 0:2:16] Bf3 is the strong threat.} Rc8 {[%emt 0:0:9]} 30. Na4 {[%emt 0:4:18]} Nc4 {[%emt 0:12:1]} 31. Rbc1 {[%emt 0:6:11]} Be5 $2 {[%emt 0:2:44]} (31... Kf8 {was necessary.} 32. Rd3 (32. Bxc4 Rxd1+ 33. Rxd1 Rxc4 $16 )Ra7 )32. Bb4+ {[%emt 0:7:47]} (32. Bxc4 Rxd1+ 33. Rxd1 Rxc4 $16 )Kf6 {[%emt 0:1:20]} 33. Nc5 {[%emt 0:4:25]} ({Not} 33. Rxc4 Rxd5 34. Rdc1 (34. Rxc8 Rxd1+ 35. Kg2 Ra1 $16 )(34. Rxd5 Rxc4 35. Nb6 Rxb4 $14 )Rxc4 35. Rxc4 g5 $16 )Nxc5 {[%emt 0:0:28]} 34. Rxc4 {[%emt 0:0:14]} Rdc7 {[%emt 0:0:49]} 35. Ba5 {[%emt 0:1:38] Weighted Error Value: White=0.07 (flawless) /Black=0.27 (precise)} 1-0

[Event "85th Tata Steel Masters 2023"]
[White "Ding,Liren"]
[Black "Praggnanandhaa R"]
[Site "Wijk aan Zee"]
[Round "4.2"]
[Annotator "TA"]
[Result "0-1"]
[Date "2023.01.17"]
[WhiteElo "2811"]
[BlackElo "2684"]
[PlyCount "146"]
[TimeControl "60"]

{[%evp 11,146,20,29,20,20,22,26,12,26,21,22,18,35,12,18,6,21,8,10,5,14,12,13,4,0,0,12,0,0,0,20,16,8,0,8,1,21,0,0,-10,-7,-43,-25,-17,-21,-30,-16,-24,-24,-24,-16,-20,-35,-29,-29,-27,-16,-31,-24,-88,-92,-81,-80,-92,-82,-82,-96,-93,-8,-105,-104,-106,-102,-108,-99,-92,-93,-131,-126,-138,-128,-133,-69,-75,0,-187,-198,-234,-174,-178,-159,-301,-308,-288,-137,-133,-66,-137,-150,-136,-139,-150,-152,-186,-189,-258,-242,-291,-205,-206,-212,-205,0,-188,-202,-331,-341,-321,-317,-312,-314,-314,-302,-314,-296,-273,-204,-316,-305,-278,-277,-340,-341,-349,-338,-294,-296]} 1. e4 {[%emt 0:0:25]} e5 {[%emt 0:0:47]} 2. Nf3 {[%emt 0:1:47]} Nc6 {[%emt 0:0:8]} 3. Bc4 {[%emt 0:0:5]} Bc5 {[%emt 0:0:17]} 4. O-O {[%emt 0:0:12]} Nf6 {[%emt 0:0:6]} 5. d3 {[%emt 0:0:4]} d6 {[%emt 0:0:23]} 6. c3 {[%emt 0:0:6]} a6 {[%emt 0:0:12]} 7. Re1 {[%emt 0:0:22] C54: Giuoco Piano: 4 c3 Nf6, main lines with 5 d4 and 5 d3.} Ba7 {[%emt 0:0:39]} 8. a4 {[%emt 0:1:38]} O-O {[%emt 0:0:20][%cal Yb7b5]} 9. h3 {[%emt 0:0:15] White has an edge.} Be6 {[%emt 0:1:5]} 10. Bxe6 {[%emt 0:3:53]} (10. Nbd2 {with more complications.} Nh5 11. b4 Qf6 12. Bxe6 fxe6 13. Nf1 )fxe6 {[%emt 0:0:12]} 11. Be3 {[%emt 0:0:3]} Bxe3 {[%emt 0:1:11] [#]} 12. fxe3 $146 {[%emt 0:0:55]} ({Predecessor:} 12. Rxe3 d5 13. Nbd2 d4 14. Re1 dxc3 15. bxc3 Qxd3 16. Qb3 Qd6 17. Rad1 Rab8 18. Nc4 {0-1 Niemann,H (2642)-Caruana,F (2781) Bundesliga 2122 2022 (12.7)} )a5 {[%emt 0:6:42]} 13. Nbd2 {[%emt 0:0:6]} Qd7 {[%emt 0:2:11]} 14. Qb3 {[%emt 0:3:41]} b6 {[%emt 0:12:13]} 15. Rad1 {[%emt 0:4:26]} Kh8 {[%emt 0:9:22]} 16. Qb5 {[%emt 0:4:57]} Nd8 {[%emt 0:4:49][%cal Yc6d8,Yd8f7,Yf7g5,Yg5f3][%mdl 32]} 17. Qxd7 {[%emt 0:3:2]} Nxd7 {[%emt 0:0:37]} 18. d4 {[%emt 0:0:2] Repels Nc5} Nf7 {[%emt 0:2:21]} 19. Kf2 {[%emt 0:11:26]} Ng5 {[%emt 0:7:52]} 20. Ke2 {[%emt 0:4:15]} Nxf3 {[%emt 0:0:9]} 21. Nxf3 {[%emt 0:13:15]} Nf6 {[%emt 0:5:46]} 22. Nd2 {[%emt 0:0:32]} Kg8 {[%emt 0:5:13]} 23. Rf1 {[%emt 0:0:13]} Rfe8 {[%emt 0:6:22]} 24. Rf3 {[%emt 0:5:50]} Rad8 {[%emt 0:8:33]} 25. g4 {[%emt 0:8:13]} d5 {[%emt 0:4:19]} 26. Rff1 {[%emt 0:18:42]} exd4 {[%emt 0:11:30]} 27. cxd4 {[%emt 0:0:39]} dxe4 {[%emt 0:1:6]} 28. g5 {[%emt 0:4:23]} Nd5 {[%emt 0:1:38]} 29. Nxe4 {[%emt 0:1:5]} e5 {[%emt 0:0:25]} 30. Rf5 $1 {[%emt 0:0:25]} Nb4 {[%emt 0:5:2]} ({Much worse is} 30... exd4 $6 31. Rxd4 c6 32. Kf2 $15 )31. dxe5 {[%emt 0:8:19]} Rxd1 {[%emt 0:0:8]} 32. Kxd1 $11 {[%emt 0:0:1][%mdl 4096] Endgame KRN-KRN} Nd3 {[%emt 0:0:16][%csl Yb2,Ye5]} 33. Kc2 {[%emt 0:0:3]} Nxe5 {[%emt 0:0:32]} 34. Nd2 {[%emt 0:5:47] Prevents Nc4.} Re6 {[%emt 0:5:4]} 35. Rf4 {[%emt 0:3:31]} (35. Kc3 $11 )Rc6+ $17 {[%emt 0:2:23]} 36. Kb1 {[%emt 0:1:1]} Nd3 {[%emt 0:1:25]} 37. Rd4 {[%emt 0:0:3]} Rc1+ {[%emt 0:3:4]} 38. Ka2 {[%emt 0:0:1]} Nb4+ {[%emt 0:1:12]} 39. Kb3 {[%emt 0:0:4]} Kf7 {[%emt 0:1:7]} ({Better is} 39... Na6 $1 $17 )40. Nc4 {[%emt 0:5:29]} (40. Rc4 $1 $11 {keeps the balance.} Rxc4 41. Kxc4 )Kg6 {[%emt 0:2:57]} 41. h4 {[%emt 0:10:59]} Kh5 {[%emt 0:3:14]} 42. Ne5 {[%emt 0:0:4]} Re1 {[%emt 0:12:20]} 43. Re4 {[%emt 0:2:24]} Rh1 {[%emt 0:7:51]} 44. Nd7 {[%emt 0:6:13]} Rxh4 {[%emt 0:3:51]} 45. Re7 {[%emt 0:0:8]} Kxg5 {[%emt 0:9:35]} 46. Rxg7+ {[%emt 0:2:48]} Kh6 {[%emt 0:0:20]} (46... Kf5 $17 {Strongly threatening ...Nd5.} 47. Rf7+ Ke4 48. Re7+ Kf5 49. Rf7+ Ke4 50. Re7+ Kf3 51. Ne5+ {[%mdl 64] Discovered Attack} Kxe3 52. Rxc7 Na6 53. Rc3+ Ke2 )47. Re7 $1 $15 {[%emt 0:11:45]} Kg5 {[%emt 0:7:14]} (47... Na6 $17 48. e4 Kg5 )48. Nf8 $2 {[%emt 0:0:18]} (48. Rg7+ $1 $11 {and White stays safe.} Kf5 49. Rf7+ Kg5 50. Rg7+ )h5 $19 {[%emt 0:1:30]} 49. Rg7+ {[%emt 0:2:26]} Kf5 {[%emt 0:1:3] Hoping for ...Re4.} 50. Rf7+ {[%emt 0:2:51]} Ke4 {[%emt 0:1:50]} 51. Rxc7 {[%emt 0:8:28]} (51. Ng6 $17 Rh3 52. Re7+ Kf3 53. Nf4 )Kxe3 {[%emt 0:1:11]} 52. Ng6 {[%emt 0:0:45]} Rd4 {[%emt 0:1:31]} (52... Re4 $19 {has better winning chances. White must now prevent ...Rg4.} 53. Rh7 Kd4 54. Rd7+ Nd5 )53. Rh7 $17 {[%emt 0:2:13]} Rd3+ {[%emt 0:1:48]} 54. Kc4 {[%emt 0:0:4]} Rd5 $1 {[%emt 0:0:7]} 55. Re7+ {[%emt 0:0:34]} Kf2 {[%emt 0:3:27]} 56. Rb7 {[%emt 0:1:52]} Rd6 {[%emt 0:0:45]} 57. Nf4 {[%emt 0:4:57]} h4 {[%emt 0:0:25]} 58. Rg7 {[%emt 0:0:6]} (58. Rh7 $142 )Kf3 $19 {[%emt 0:0:48]} 59. Nh3 {[%emt 0:0:1]} Nc6 {[%emt 0:0:58][%cal Yd6g6]} 60. Ng5+ {[%emt 0:0:36]} Kf4 {[%emt 0:0:30]} 61. Nh3+ {[%emt 0:0:5]} Kf3 {[%emt 0:0:0][%cal Yd6g6] ...Rg6! is the strong threat.} 62. Ng5+ {[%emt 0:0:0] [#]} Ke3 $1 {[%emt 0:0:0]} 63. Nh3 {[%emt 0:0:0]} (63. Kb5 {only move.} )Nd4 {[%emt 0:0:0] ( -> ...Rc6+)} 64. Rg4 {[%emt 0:0:0]} Rc6+ {[%emt 0:0:0]} 65. Kd5 {[%emt 0:0:0] Threatens to win with Re4+.} Rc5+ {[%emt 0:0:0]} 66. Kd6 {[%emt 0:0:0]} Nf5+ {[%emt 0:0:0]} 67. Kd7 {[%emt 0:0:0] [#]} Kf3 $1 {[%emt 0:0:0]} 68. Rg6 {[%emt 0:0:0]} Rd5+ {[%emt 0:0:0]} 69. Ke6 {[%emt 0:3:21]} (69. Kc7 $142 )Ne3 {[%emt 0:0:0] Black has a decisive advantage.} 70. Ng1+ {[%emt 0:1:46]} Ke4 {[%emt 0:0:1]} 71. Nh3 {[%emt 0:15:10]} Rd4 {[%emt 0:16:13]} 72. b3 {[%emt 0:1:15]} Rb4 {[%emt 0:0:48]} 73. Rf6 {[%emt 0:0:18]} Kd3 {[%emt 0:0:44] Weighted Error Value: White=0.22 (precise) /Black=0.12 (very precise)} ({Inferior is} 73... Rxb3 74. Rf4+ Kd3 75. Rxh4 $17 )0-1

[Event "85th Tata Steel Masters 2023"]
[White "Rapport,Richard"]
[Black "Caruana,Fabiano"]
[Site "Wijk aan Zee"]
[Round "4.3"]
[Annotator "TA"]
[Result "1/2-1/2"]
[Date "2023.01.17"]
[WhiteElo "2740"]
[BlackElo "2766"]
[PlyCount "71"]
[TimeControl "60"]

{[%evp 12,71,29,21,57,43,48,33,47,46,46,43,51,33,54,63,52,39,60,0,0,-56,0,0,0,0,0,0,0,0,0,0,0,0,0,-2,0,-20,-20,-24,-19,-21,-23,-49,-17,-31,-42,-89,-65,-101,-88,-117,-104,-95,-84,-87,0,-61,0,-72,0,-61]} 1. c4 {[%emt 0:0:7]} e6 {[%emt 0:0:11]} 2. Nc3 {[%emt 0:0:27]} d5 {[%emt 0:0:6]} 3. d4 {[%emt 0:0:7]} Nf6 {[%emt 0:0:5]} 4. cxd5 {[%emt 0:0:7]} exd5 {[%emt 0:0:4]} 5. Bg5 {[%emt 0:0:7][%cal Yc1g5,Yg5h4,Yh4g3][%mdl 32]} Bb4 {[%emt 0:0:8]} 6. e3 {[%emt 0:2:43]} h6 {[%emt 0:0:22]} 7. Bh4 {[%emt 0:0:26]} g5 {[%emt 0:0:9] D35: Queen's Gambit Declined: Exchange Variation.} 8. Bg3 {[%emt 0:0:9]} h5 {[%emt 0:0:12]} 9. h4 {[%emt 0:5:59] Hoping for Qb3.} Ne4 {[%emt 0:0:20] White is slightly better.} 10. Nge2 {[%emt 0:0:10]} Bg4 {[%emt 0:0:25] Threatens to win with ...Nxc3.} 11. Qb3 {[%emt 0:3:24]} Nxg3 {[%emt 0:0:15]} 12. Nxg3 {[%emt 0:2:25]} Nc6 {[%emt 0:0:8]} 13. Bb5 {[%emt 0:12:16]} Bxc3+ {[%emt 0:0:29]} 14. Qxc3 {[%emt 0:0:40]} Rh6 {[%emt 0:0:8]} 15. hxg5 {[%emt 0:16:25]} (15. f3 $14 gxh4 16. fxg4 hxg3 17. Rxh5 (17. gxh5 a6 $14 ))Qxg5 $11 {[%emt 0:0:25]} 16. Qc5 {[%emt 0:2:55]} (16. Be2 $11 )a6 {[%emt 0:8:52]} ({Black should play} 16... h4 $1 $15 17. Ne4 {[%mdl 64] Pin} Qf5 )17. Be2 $1 {[%emt 0:12:18]} ({Not} 17. Ne4 $2 Qd8 18. Bd3 (18. Bxc6+ $2 Rxc6 19. Qb4 dxe4 $19 )Bf5 $19 )O-O-O $1 {[%emt 0:7:26]} 18. Bxg4+ {[%emt 0:2:22]} Qxg4 {[%emt 0:3:54]} 19. Qc2 {[%emt 0:0:40] [#]} Ne7 $146 {[%emt 0:4:1] Dodges Qf5+} ({Predecessor:} 19... Nb4 20. Qd2 Rb6 21. Rxh5 Qg6 22. Rf5 Qc6 23. Kf1 Nc2 24. Rb1 Na3 25. Rc1 Qb5+ {0-1 Tsvetkov,A (2398)-Nesterov,A (2567) The Game has begun U20 2022 (6)} )20. Qe2 {[%emt 0:2:24] Qxg4+ is the strong threat.} Rdh8 {[%emt 0:0:21]} 21. Qxg4+ {[%emt 0:1:11]} hxg4 {[%emt 0:1:15]} 22. Rxh6 {[%emt 0:0:20]} Rxh6 {[%emt 0:0:4][%mdl 4096] Endgame KRN-KRN} 23. Rc1 {[%emt 0:0:8]} Kd7 {[%emt 0:0:7]} 24. Rc3 {[%emt 0:1:7]} Nc8 {[%emt 0:0:42]} 25. e4 {[%emt 0:5:18]} dxe4 {[%emt 0:0:5]} 26. Nxe4 {[%emt 0:0:8]} b6 {[%emt 0:0:19] Wards off Nc5+} (26... Re6 $5 27. Re3 $8 b6 $11 )27. Ng3 {[%emt 0:0:41]} Nd6 {[%emt 0:0:30]} 28. f3 {[%emt 0:1:17]} Rh4 {[%emt 0:0:36]} 29. Ne2 {[%emt 0:6:40] [#]} (29. f4 $15 )Rh1+ $1 $17 {[%emt 0:0:9]} 30. Kf2 {[%emt 0:1:24] [#]} gxf3 $1 {[%emt 0:1:13]} 31. gxf3 {[%emt 0:0:36]} Rd1 {[%emt 0:0:29]} 32. Ke3 {[%emt 0:2:1] Repels Rd2} Nf5+ {[%emt 0:0:6]} 33. Ke4 {[%emt 0:0:8]} Nd6+ {[%emt 0:4:21]} 34. Ke3 $1 {[%emt 0:0:6]} Nf5+ {[%emt 0:0:3]} (34... Ra1 $5 {[%cal Ra1a2]} 35. Nc1 Nf5+ 36. Ke4 Ne7 $15 )35. Ke4 {[%emt 0:0:3]} Nd6+ {[%emt 0:0:2]} 36. Ke3 $1 {[%emt 0:0:3] Weighted Error Value: White=0.11 (very precise) /Black=0.13 (very precise)} 1/2-1/2

[Event "85th Tata Steel Masters 2023"]
[White "Abdusattorov,Nodirbek"]
[Black "Maghsoodloo,Parham"]
[Site "Wijk aan Zee"]
[Round "4.4"]
[Annotator "TA"]
[Result "1-0"]
[Date "2023.01.17"]
[WhiteElo "2713"]
[BlackElo "2719"]
[PlyCount "127"]
[TimeControl "60"]

{[%evp 17,126,37,36,26,37,34,49,34,40,33,79,75,76,76,84,79,189,0,0,0,0,0,7,10,2,0,0,0,0,0,0,0,144,129,117,125,110,32,529,32,29,29,29,29,31,25,31,29,31,10,10,8,32,32,32,32,32,33,36,39,55,55,97,91,91,79,84,88,92,8,196,40,142,145,125,68,63,66,129,146,268,277,271,274,267,252,231,218,1045,946,12827,12836,12837,12837,12838,12838,12841,12841,12842,12843,12843,12843,12844,12843,12847,12847,12847,12848,12848,12845,29999]} 1. e4 {[%emt 0:0:22]} e5 {[%emt 0:0:9]} 2. Nf3 {[%emt 0:0:13]} Nc6 {[%emt 0:0:4]} 3. Bb5 {[%emt 0:0:18]} a6 {[%emt 0:0:6]} 4. Ba4 {[%emt 0:0:17]} Nf6 {[%emt 0:0:7]} 5. O-O {[%emt 0:0:17]} Be7 {[%emt 0:0:6]} 6. d3 {[%emt 0:0:15]} d6 {[%emt 0:3:7]} 7. c3 {[%emt 0:0:42]} O-O {[%emt 0:0:27]} 8. Re1 {[%emt 0:0:29] The main line 8.Re1 scores better than 8.Nbd2.} b5 {[%emt 0:3:55]} 9. Bc2 {[%emt 0:0:33]} Re8 {[%emt 0:9:20]} 10. Nbd2 {[%emt 0:1:45][%cal Yb1d2,Yd2f1,Yf1g3,Yg3e4][%mdl 32] C84: Closed Ruy Lopez: Unusual White 6th moves.} Bf8 {[%emt 0:3:45]} 11. Nf1 {[%emt 0:0:26]} g6 {[%emt 0:6:11]} 12. h3 {[%emt 0:7:0] White is slightly better.} Bg7 {[%emt 0:11:41]} 13. Ng3 {[%emt 0:5:10]} d5 {[%emt 0:19:32]} (13... Bb7 $14 )14. d4 $16 {[%emt 0:7:5]} dxe4 {[%emt 0:11:24]} 15. Nxe4 {[%emt 0:6:41] [#]} exd4 $146 {[%emt 0:1:12]} ({Predecessor:} 15... Nxe4 16. Bxe4 Bb7 17. Bg5 Qc8 18. Bxc6 Bxc6 19. Nxe5 Bd5 20. Ng4 Qf5 21. Bh6 Qh5 22. Bxg7 Kxg7 {1-0 Chen,Q (2328)-Godbole,A (2100) Ho Chi Minh City HD Bank op 7th 2017 (4)} )16. Bg5 {[%emt 0:2:17]} (16. Nxd4 $6 Nxd4 17. cxd4 Nxe4 18. Bxe4 Rb8 $11 )Be6 {[%emt 0:0:34]} (16... Bd7 $16 {keeps fighting.} )17. Bb3 $2 {[%emt 0:11:47]} (17. Nxd4 Nxd4 18. cxd4 h6 $11 )(17. cxd4 $18 {[%cal Yd4d5] Threatens to win with d5!} Nb4 18. Bb3 )h6 $11 {[%emt 0:6:52]} 18. Bxe6 {[%emt 0:1:14]} Rxe6 {[%emt 0:3:2]} (18... hxg5 19. Bxf7+ Kxf7 20. Nexg5+ Kf8 21. Rxe8+ (21. Qb3 Qd7 $14 )(21. Ne6+ Rxe6 22. Rxe6 dxc3 $14 )Qxe8 22. Qb3 $11 )19. Nxf6+ {[%emt 0:0:9]} Bxf6 {[%emt 0:0:24]} 20. Rxe6 {[%emt 0:0:8]} fxe6 {[%emt 0:0:3]} 21. Qe2 {[%emt 0:22:19]} hxg5 {[%emt 0:3:23]} 22. Qxe6+ {[%emt 0:0:6]} Kh7 {[%emt 0:7:25]} 23. Qxc6 {[%emt 0:14:8]} dxc3 {[%emt 0:0:10]} 24. bxc3 {[%emt 0:0:3]} b4 {[%emt 0:0:4]} (24... Rb8 $1 $11 {remains equal.} )25. Re1 $16 {[%emt 0:12:45]} bxc3 {[%emt 0:0:10]} 26. Re6 {[%emt 0:0:5] White has more active pieces.} Kg7 {[%emt 0:7:35]} 27. Ne5 {[%emt 0:0:58]} (27. Qe4 $16 {Ne5 would be deadly.} Qd7 28. Rxf6 (28. Nxg5 Rb8 $11 )Kxf6 29. Qxa8 Qd1+ 30. Kh2 )Qd1+ {[%emt 0:1:50]} 28. Kh2 {[%emt 0:0:10][%cal Ye6f6]} Bxe5+ {[%emt 0:0:18]} 29. Rxe5 $14 {[%emt 0:0:6][%mdl 4096] Endgame KQR-KQR} Qd6 {[%emt 0:0:5]} 30. Qxc3 {[%emt 0:0:6]} Re8 {[%emt 0:1:49] [#]} 31. f4 {[%emt 0:1:35] Intending Re7+ and mate.} Kf8 {[%emt 0:2:5] Against Re7} 32. Rxg5 {[%emt 0:4:43][%cal Ye5g5,Yg5g3,Yg3d3,Yd3d8][%mdl 32]} Qxf4+ {[%emt 0:0:12]} 33. Rg3 {[%emt 0:0:5] Strongly threatening Kg1.} (33. Qg3 {simplifies} Qxg3+ 34. Kxg3 Kg7 35. Kf3 )Re6 {[%emt 0:3:14]} 34. Kg1 {[%emt 0:0:24]} Kg8 {[%emt 0:0:8][%cal Yc7c5]} (34... Rf6 $2 35. Rf3 $18 )(34... Qd6 {simplifies} 35. Rd3 Qe5 36. Qxe5 Rxe5 37. Ra3 a5 )35. Rd3 {[%emt 0:0:19]} c5 {[%emt 0:4:3]} 36. Rd8+ {[%emt 0:5:2]} (36. Qxc5 $2 Re1# )Kf7 {[%emt 0:0:1]} 37. Rd7+ {[%emt 0:0:7]} (37. Qxc5 $2 Re1# )Ke8 {[%emt 0:0:3]} 38. Rd5 {[%emt 0:0:25]} Qh4 {[%emt 0:3:14] Against Qh8+} (38... Re2 $2 39. Qh8+ Ke7 40. Qg7+ (40. Rxc5 $2 Re1# )Ke6 41. Qd7+ (41. Rxc5 $2 Re1# )Kf6 42. Rd6+ $18 (42. Qd6+ Qxd6 43. Rxd6+ Ke5 $11 )(42. Qd6+ Qxd6 43. Rxd6+ Ke5 $11 ))39. Rd1 {[%emt 0:1:33] Inhibits Re1+.} (39. Qxc5 Re1+ 40. Kh2 Qf4+ 41. g3 Re2+ 42. Kh1 Qf3+ 43. Kg1 Qg2# )(39. Re5 {simplifies} Rxe5 40. Qxe5+ Kf7 41. Qxc5 Qe4 42. Qc7+ )c4 {[%emt 0:1:7]} 40. Rf1 $1 {[%emt 0:0:11] Hoping for Kh1.} Kd7 {[%emt 0:1:1]} 41. Qb4 {[%emt 0:57:32]} Qd4+ {[%emt 0:8:45]} 42. Kh1 {[%emt 0:0:0]} Qd5 {[%emt 0:4:10]} 43. Qf8 {[%emt 0:0:0]} (43. Rf7+ Kc6 44. Qb7+ Kc5 45. Rc7+ Rc6 $11 )({Better is} 43. Qb2 $1 $16 )Re7 $2 {[%emt 0:9:15]} (43... Re2 $1 $11 {and Black is okay.} 44. Qg7+ Kd6 45. Qxg6+ (45. Rf6+ Re6 $16 )Kc5 )44. Qf6 $2 {[%emt 0:0:0]} (44. Qf2 $1 $18 )Rh7 {[%emt 0:1:41]} (44... g5 $1 $14 )45. Rf4 $1 $16 {[%emt 0:0:0][%cal Yf4d4] Black must now prevent Rd4!} (45. Qxg6 Rxh3+ 46. Kg1 Qd4+ 47. Rf2 Qd1+ 48. Rf1 Rh1+ 49. Kxh1 Qxf1+ 50. Kh2 Qd3 51. Qg4+ Kc7 $19 )Kc7 {[%emt 0:5:12] [#]} (45... Rxh3+ $2 46. Kg1 Rd3 47. Qg7+ (47. Qxa6 Rd1+ 48. Kf2 Rd2+ {[%mdl 64] Skewer} 49. Ke1 Rxa2 $15 )(47. Qxg6 Qc5+ 48. Kh2 Qe5 $16 )Kd6 48. Qxg6+ (48. Rf6+ Kc5 $17 )Ke7 49. Qg7+ (49. Qxa6 Rd1+ 50. Kf2 Rd2+ 51. Ke1 Rd1+ 52. Kf2 Qd2+ 53. Kg3 Qc3+ 54. Kh2 Rh1+ {[%mdl 64] Decoy} 55. Kxh1 Qc1+ $11 )Kd6 50. Rf6+ Ke5 51. Rf7+ Kd6 52. Rd7+ Kc5 53. Rxd5+ $18 )46. Rd4 {[%emt 0:0:0]} (46. Qxg6 $2 Rxh3+ 47. Kg1 Qd1+ 48. Kf2 Qd2+ 49. Kg1 Qd1+ 50. Kf2 Qd2+ 51. Kg1 Qd1+ $19 )({White should try} 46. Kh2 $1 $16 g5 47. Qd4 Qxd4 48. Rxd4 )Rf7 $1 $14 {[%emt 0:0:41]} 47. Qh8 $36 {[%emt 0:0:0][%mdl 2048] Black is under pressure. Dancing on a razor blade.} (47. Qxg6 $2 {loses.} Rf1+ 48. Kh2 Qxd4 $19 )Qb5 {[%emt 0:8:38] Black is on the road to losing.} (47... Rf8 48. Rxd5 Rxh8 49. Rc5+ Kd7 50. Rxc4 $16 )(47... Qe6 $14 )48. a4 {[%emt 0:0:0]} Qc5 {[%emt 0:5:58] [#]} (48... Qc6 $16 )49. Rd1 $1 $18 {[%emt 0:0:0]} Rd7 {[%emt 0:1:25] Wards off Qd8+} 50. Rb1 {[%emt 0:0:0] Qb8+ is the strong threat.} Rd8 {[%emt 0:0:38] Prevents Qb8+.} 51. Qg7+ {[%emt 0:0:0]} (51. Qf6 c3 $16 )Rd7 {[%emt 0:0:1]} 52. Qb2 {[%emt 0:0:0] And now Qb8+ would win.} ({Not} 52. Qxg6 c3 $14 )Kc6 $2 {[%emt 0:3:7]} (52... Rd6 53. Qb8+ Kd7 54. Rb7+ Ke6 55. Qg8+ Ke5 56. Re7+ Kd4 )53. Qb8 {[%emt 0:0:0] aiming for Qc8+.} Rd3 {[%emt 0:3:11]} 54. Qb7+ {[%emt 0:0:0]} Kd6 {[%emt 0:0:13]} 55. Qxa6+ {[%emt 0:0:0]} Ke7 {[%emt 0:0:6]} 56. Qxg6 {[%emt 0:0:0] White wants to mate with Rb7+.} Kd7 {[%emt 0:2:38] [#]} 57. a5 $1 {[%emt 0:0:0][%cal Ya4a5,Ya5a6][%mdl 32]} Qd5 {[%emt 0:0:20]} (57... Qd6 58. Qg4+ )58. Qg4+ {[%emt 0:0:0]} Kd6 {[%emt 0:0:38]} 59. a6 {[%emt 0:0:0]} c3 {[%emt 0:0:4]} 60. Rb6+ {[%emt 0:0:0]} Ke5 {[%emt 0:0:41]} 61. Qg5+ {[%emt 0:0:0]} Ke4 {[%emt 0:0:42]} 62. Qe7+ {[%emt 0:0:0]} Qe5 {[%emt 0:0:16]} 63. Qh4+ {[%emt 0:0:0]} Kf5 {[%emt 0:0:19]} 64. Qg4# {[%emt 0:0:6] Weighted Error Value: White=0.19 (very precise) /Black=0.36} 1-0